bitfinex/quotes_ETHUSD_20250810
["timestamp","ask_amount","ask_price","bid_price","bid_amount"]
[1754784655716,3.524727,4261.8,4261.7,2.34648145]
[1754784655913,3.524727,4261.8,4261.7,2.56541988]
[1754784656104,3.524727,4261.8,4261.7,2.68301988]
[1754784656500,3.524727,4261.8,4261.7,3.38751488]
[1754784658237,3.524727,4261.8,4261.7,6.38751488]
[1754784658446,0.002,4262.2,4261.7,6.38751488]
[1754784658644,0.002,4262.2,4262.1,0.1176]
[1754784658852,0.002,4262.2,4262.1,2.68279966]
[1754784661323,0.002,4262.2,4262.1,5.70626227]
[1754784661522,1e-08,4262.3,4262.1,5.68279966]
[1754784661724,1e-08,4262.3,4262.2,5.70620667]
[1754784661920,1e-08,4262.3,4262.2,9.29574461]
[1754784662652,1e-08,4262.3,4262.2,9.38965161]
[1754784662939,0.002,4263.5,4262.2,9.38965161]
[1754784662940,0.002,4263.5,4262.8,2.34587595]
[1754784663241,0.002,4263.5,4262.8,9.29541438]
[1754784663242,1e-08,4262.9,4262.8,9.29541438]
[1754784664747,1e-08,4262.9,4262.8,2.68241438]
[1754784666640,1e-08,4262.9,4262.8,0.33653843]
[1754784667144,1e-08,4262.9,4262.8,2.68241438]
[1754784669074,1e-08,4262.9,4262.8,2.68073497]
[1754784669234,0.00200001,4262.9,4262.8,2.68073497]
[1754784672172,0.00200001,4262.9,4262.8,2.46347595]
[1754784672593,0.00200001,4262.9,4262.8,6.07447595]
[1754784673572,0.00200001,4262.9,4262.8,5.95687595]
[1754784673774,1e-08,4262.9,4262.8,9.07447595]
[1754784682662,0.002,4263.4,4263.3,2.34560082]
[1754784682858,0.002,4263.4,4263.3,5.95560082]
[1754784683086,0.002,4263.5,4263.3,5.95560082]
[1754784683087,0.002,4263.5,4263.4,2.3455458]
[1754784683272,1e-08,4263.5,4263.4,5.36900125]
[1754784683506,1e-08,4263.5,4263.4,5.3455458]
[1754784683678,1e-08,4263.5,4263.4,5.4631458]
[1754784684280,1e-08,4263.5,4263.4,5.5570228]
[1754784687777,1e-08,4263.5,4263.4,9.0484228]
[1754784688287,1e-08,4263.5,4263.4,6.0484228]
[1754784688889,1e-08,4263.5,4263.4,2.4394228]
[1754784690390,1e-08,4263.5,4263.4,0.093877]
[1754784690778,1e-08,4263.5,4263.2,2.3456439]
[1754784690979,1e-08,4263.5,4263.2,2.4395519]
[1754784691302,1e-08,4263.5,4263.3,2.34559928]
[1754784691702,1e-08,4263.5,4263.4,2.3455458]
[1754784693171,1e-08,4263.5,4263.4,2.4394538]
[1754784694202,1e-08,4263.5,4263.4,0.093908]
[1754784694972,1e-08,4263.5,4263.4,2.4394538]
[1754784695309,1e-08,4263.5,4263.4,0.093908]
[1754784695604,1e-08,4263.5,4263.4,2.4394538]
[1754784697681,1e-08,4263.5,4263.4,2.5570538]
[1754784698895,1e-08,4263.5,4263.4,2.58050925]
[1754784699403,1e-08,4263.5,4263.4,2.5570538]
[1754784700804,1e-08,4263.5,4263.4,0.211508]
[1754784701022,1e-08,4263.5,4263.0,0.1176]
[1754784701315,1e-08,4263.5,4262.8,0.001]
[1754784701316,0.57345727,4263.5,4262.8,0.001]
[1754784701476,0.1176,4263.0,4262.8,0.001]
[1754784702077,0.1176,4263.0,4262.9,0.21854422]
[1754784709625,1e-08,4263.5,4262.9,0.21854422]
[1754784709853,1e-08,4263.5,4263.0,0.21854422]
[1754784710019,1e-08,4263.5,4263.2,2.34563498]
[1754784710326,1e-08,4263.5,4263.3,2.56411168]
[1754784710525,1e-08,4263.5,4263.0,2.3457611]
[1754784710526,1e-08,4263.5,4263.4,0.21854422]
[1754784710722,0.55000001,4263.5,4263.4,0.21854422]
[1754784711448,2.8954908,4263.5,4263.4,0.21854422]
[1754784711618,5.8954908,4263.5,4263.4,0.21854422]
[1754784713419,3.72560001,4263.5,4263.4,0.21854422]
[1754784716075,3.72560001,4263.5,4263.4,0.21828378]
[1754784719932,4.27560001,4263.5,4263.4,0.21828378]
[1754784720134,9.6210908,4263.5,4263.4,0.21828378]
[1754784722051,6.72560001,4263.5,4263.4,0.21828378]
[1754784723666,3.72560001,4263.5,4263.4,0.21828378]
[1754784725050,3.72560001,4263.5,4263.4,2.56382958]
[1754784725452,3.72560001,4263.5,4263.4,0.21828378]
[1754784725753,3.72560001,4263.5,4263.4,2.56382958]
[1754784726183,3.72560001,4263.5,4263.4,0.21828378]
[1754784726674,3.72560001,4263.5,4263.4,2.56382958]
[1754784727179,3.60700001,4263.5,4263.4,2.68142958]
[1754784727386,1e-08,4263.5,4263.4,2.68142958]
[1754784729380,1e-08,4263.5,4263.4,2.68178888]
[1754784730956,1e-08,4263.5,4263.4,3.38604488]
[1754784731687,1e-08,4263.5,4263.4,6.40930811]
[1754784731890,1e-08,4263.5,4263.4,6.38585266]
[1754784732662,1e-08,4263.5,4263.4,9.99285266]
[1754784735100,1e-08,4263.5,4263.4,9.9925792]
[1754784736493,1e-08,4263.9,4263.8,2.34532576]
[1754784736696,7.14759999,4265.4,4263.9,3.0]
[1754784736865,7.14759999,4265.4,4264.0,0.2181774]
[1754784737068,7.14759999,4265.4,4264.3,3.0]
[1754784737290,7.14759999,4265.4,4264.5,3.0]
[1754784737492,7.14759999,4265.4,4264.7,2.34483082]
[1754784737767,7.14759999,4265.4,4264.8,2.68055323]
[1754784738079,0.1176,4265.4,4264.8,2.68055323]
[1754784738275,3.606,4265.5,4264.8,2.56295323]
[1754784738479,3.606,4265.5,4264.8,2.68055323]
[1754784739810,3.606,4265.5,4264.8,0.2181774]
[1754784740010,2.34463821,4265.1,4264.8,0.2181774]
[1754784740178,0.02345726,4265.4,4264.8,0.2181774]
[1754784740380,2.38472086,4264.9,4264.8,0.2181774]
[1754784740589,2.93472086,4264.9,4264.8,0.2181774]
[1754784740909,2.95817812,4264.9,4264.8,0.2181774]
[1754784741212,2.95817812,4264.9,4263.3,0.001]
[1754784741213,2.34510849,4264.2,4263.4,2.34550332]
[1754784741390,3.605,4264.1,4263.5,2.56336908]
[1754784741591,3.605,4264.2,4263.6,0.21788983]
[1754784741787,5.95011065,4264.2,4263.7,0.21788983]
[1754784742117,3.605,4264.2,4263.8,0.21788983]
[1754784742408,3.605,4264.2,4263.9,0.21788983]
[1754784742614,3.605,4264.2,4264.0,0.21788983]
[1754784742917,2.34529318,4263.9,4263.3,0.001]
[1754784743099,2.3454465,4263.6,4263.4,0.21800578]
[1754784743303,2.3454465,4263.6,4263.5,0.21800578]
[1754784743501,3.605,4263.6,4263.5,0.21800578]
[1754784746419,3.605,4263.6,4263.3,0.001]
[1754784746724,3.605,4263.6,4263.4,0.21808474]
[1754784746883,3.605,4263.6,4263.5,0.21808474]
[1754784753684,3.605,4263.8,4263.5,0.21808474]
[1754784753932,3.605,4263.8,4263.6,0.33568474]
[1754784754118,3.605,4263.8,4263.7,2.56345679]
[1754784754701,3.7226,4264.2,4264.0,2.34519764]
[1754784754904,3.7226,4264.2,4264.1,0.21808474]
[1754784755111,3.7226,4264.2,4264.1,0.21799266]
[1754784755507,3.7226,4264.2,4264.1,2.56315342]
[1754784755839,3.605,4264.2,4264.1,0.21799266]
[1754784756132,3.605,4264.2,4264.1,2.56315342]
[1754784756829,3.7216,4264.6,4264.2,2.34508782]
[1754784757128,3.604,4264.6,4264.3,0.21799266]
[1754784757330,3.604,4264.6,4264.4,2.56298843]
[1754784757634,3.604,4264.6,4264.5,2.56293345]
[1754784759220,0.042,4264.9,4264.8,2.34477583]
[1754784759542,0.042,4264.9,4264.8,2.56276849]
[1754784760546,0.042,4264.9,4264.8,2.70381624]
[1754784760700,0.042,4264.9,4264.8,2.68036849]
[1754784764845,0.042,4264.9,4264.8,0.33559266]
[1754784765050,0.042,4264.9,4264.8,2.56276849]
[1754784765844,0.042,4264.9,4264.8,0.21799266]
[1754784767843,0.1596,4264.9,4264.8,0.21799266]
[1754784769437,0.1596,4264.9,4264.8,0.21765804]
[1754784774917,0.042,4264.9,4264.8,0.21765804]
[1754784775112,0.042,4264.9,4264.8,2.56243387]
[1754784775541,0.042,4264.9,4264.8,2.68003387]
[1754784777835,0.042,4264.9,4264.8,2.70349266]
[1754784778038,1e-08,4264.9,4264.8,9.28204491]
[1754784783058,1e-08,4264.9,4264.8,6.28104491]
[1754784783225,1e-08,4264.9,4264.8,2.68004491]
[1754784784543,1e-08,4264.9,4264.8,2.70349266]
[1754784784858,1e-08,4264.9,4264.8,2.68004491]
[1754784785055,1e-08,4264.9,4264.8,5.70349266]
[1754784785350,1e-08,4264.9,4264.8,5.68004491]
[1754784787231,0.002,4265.3,4265.2,2.34455594]
[1754784787232,1e-08,4265.3,4265.2,2.34455594]
[1754784787431,1e-08,4265.3,4265.2,9.16322502]
[1754784787657,1e-08,4265.3,4265.2,9.28082502]
[1754784787855,1e-08,4265.3,4265.2,9.98459102]
[1754784788158,1e-08,4265.9,4265.8,2.34422617]
[1754784788360,1e-08,4265.9,4265.8,9.16289525]
[1754784788531,1e-08,4265.9,4265.8,9.28049525]
[1754784793966,1e-08,4265.9,4265.8,5.67949525]
[1754784794167,1e-08,4265.9,4265.8,2.67949525]
[1754784797868,1e-08,4265.9,4265.8,0.33526908]
[1754784798263,1e-08,4265.9,4265.8,2.67949525]
[1754784798451,1e-08,4265.9,4265.8,0.33526908]
[1754784798773,1e-08,4265.9,4265.8,2.67949525]
[1754784802147,0.00200001,4265.9,4265.8,2.67949525]
[1754784809081,0.00200001,4265.9,4265.8,2.70293751]
[1754784809262,0.00200001,4265.9,4265.8,2.67949525]
[1754784809465,0.00200001,4265.9,4265.8,5.70293751]
[1754784809650,1e-08,4265.9,4265.8,5.67949525]
[1754784811380,1e-08,4265.9,4265.8,5.67984004]
[1754784812384,1e-08,4265.9,4265.8,9.27884004]
[1754784816492,0.04,4266.9,4266.8,2.34367676]
[1754784816693,0.04,4266.9,4266.8,6.15969063]
[1754784816880,0.04,4266.9,4266.8,2.67849063]
[1754784817086,0.04,4266.9,4266.8,6.27649063]
[1754784818961,0.04,4266.9,4266.8,2.67849063]
[1754784819179,0.04,4266.9,4266.8,6.27649063]
[1754784822475,0.04,4266.9,4266.8,9.27649063]
[1754784825289,0.042,4266.9,4266.8,9.27649063]
[1754784825905,0.042,4266.9,4266.8,9.27549063]
[1754784826787,1e-08,4266.9,4266.8,9.27549063]
[1754784829706,1e-08,4266.9,4266.8,2.67849063]
[1754784829881,1e-08,4266.9,4266.8,2.56169063]
[1754784831778,1e-08,4266.9,4266.8,0.21801387]
[1754784831980,1e-08,4266.9,4266.8,2.56169063]
[1754784833523,1e-08,4266.9,4266.8,0.21801387]
[1754784836785,1e-08,4266.9,4266.8,0.21788746]
[1754784838586,2.90000001,4266.9,4266.8,0.21788746]
[1754784838982,1e-08,4266.9,4266.8,0.21788746]
[1754784843815,2.90000001,4266.9,4266.8,0.21788746]
[1754784844500,1e-08,4266.9,4266.8,0.21788746]
[1754784845286,2.46042184,4266.9,4266.8,0.21788746]
[1754784845486,0.11680001,4266.9,4266.8,0.21788746]
[1754784845816,3.0338791,4266.9,4266.8,0.21788746]
[1754784845992,3.01042184,4266.9,4266.8,0.21788746]
[1754784846715,3.01042184,4266.9,4266.8,0.21888746]
[1754784848624,5.91042184,4266.9,4266.8,0.21888746]
[1754784848786,6.61380001,4266.9,4266.8,0.21888746]
[1754784849305,3.01680001,4266.9,4266.8,0.21888746]
[1754784849524,2.90000001,4266.9,4266.8,0.21888746]
[1754784850224,2.90000001,4266.9,4266.8,0.21872011]
[1754784851711,2.90000001,4266.9,4266.8,2.56239687]
[1754784851712,1e-08,4266.9,4266.8,2.56239687]
[1754784852999,3.59700001,4266.9,4266.7,0.1168]
[1754784853198,3.59700001,4266.9,4265.8,0.001]
[1754784853199,2.34381325,4266.6,4265.8,0.001]
[1754784853402,3.01069649,4266.4,4265.8,0.001]
[1754784854095,6.22948855,4266.4,4265.8,0.001]
[1754784854297,9.83948855,4266.4,4265.8,0.001]
[1754784854929,6.22948855,4266.4,4265.8,0.001]
[1754784855109,9.62169649,4266.4,4265.8,0.001]
[1754784855304,7.2778,4266.4,4265.8,0.001]
[1754784855605,4.2778,4266.4,4265.8,0.001]
[1754784855912,3.7288,4266.4,4265.8,0.001]
[1754784856740,6.07269649,4266.4,4265.8,0.001]
[1754784856915,3.7288,4266.4,4265.8,0.001]
[1754784857413,0.1168,4266.4,4265.8,2.34517611]
[1754784857612,3.7288,4266.4,4265.8,0.001]
[1754784857796,0.1168,4266.4,4265.8,0.001]
[1754784858000,3.7278,4266.4,4265.8,2.3452202]
[1754784858215,3.7278,4266.4,4266.2,2.34400524]
[1754784858405,0.1168,4266.4,4265.8,0.001]
[1754784858609,3.611,4266.4,4266.3,0.1178]
[1754784859029,3.611,4266.4,4266.3,2.46175143]
[1754784859331,3.611,4266.8,4266.7,2.34368079]
[1754784859728,1e-08,4266.9,4266.8,2.34367676]
[1754784860531,1e-08,4266.9,4266.6,2.34373691]
[1754784860711,1e-08,4266.9,4266.5,2.3438216]
[1754784860916,1e-08,4266.9,4266.3,0.001]
[1754784861117,1e-08,4266.9,4266.8,2.34367676]
[1754784863318,1e-08,4266.9,4266.3,0.001]
[1754784863515,1e-08,4266.9,4266.4,0.1168]
[1754784863762,1e-08,4266.9,4266.3,0.001]
[1754784864038,0.1168,4266.7,4266.3,0.001]
[1754784864332,3.61,4266.6,4266.3,0.001]
[1754784864704,3.61,4266.6,4266.3,2.3449437]
[1754784865721,3.61,4266.6,4266.4,2.34389649]
[1754784866935,3.61,4266.6,4266.3,0.001]
[1754784866936,3.61,4266.6,4266.5,2.34384155]
[1754784867126,3.61,4266.6,4266.4,2.34388937]
[1754784867331,3.61,4266.6,4266.3,2.46174525]
[1754784867528,3.61,4266.6,4266.3,0.001]
[1754784868340,3.61,4266.6,4266.5,2.34384155]
[1754784868540,3.61,4266.6,4266.4,2.34389171]
[1754784868741,3.61,4266.6,4266.3,2.34494375]
[1754784868910,3.61,4266.6,4266.4,2.34389145]
[1754784869110,3.612,4266.6,4266.3,2.34494702]
[1754784869345,3.612,4266.6,4266.4,2.34389083]
[1754784870446,3.612,4266.6,4266.3,2.34494291]
[1754784870745,3.612,4266.6,4266.4,2.34389561]
[1754784870944,3.612,4266.6,4266.3,0.001]
[1754784871278,3.612,4266.6,4266.4,2.34388941]
[1754784871444,3.612,4266.6,4266.5,2.34384155]
[1754784871822,3.612,4266.6,4266.4,2.34388481]
[1754784872023,3.612,4266.6,4266.3,2.34494269]
[1754784872746,3.612,4266.6,4266.4,2.34387454]
[1754784872947,0.002,4266.6,4266.5,2.34384155]
[1754784873151,0.002,4266.6,4266.5,2.46064155]
[1754784875445,0.002,4266.6,4266.5,2.48407996]
[1754784875647,1e-08,4266.6,4266.5,2.48407996]
[1754784875947,1e-08,4266.6,4266.5,2.46064155]
[1754784877343,1e-08,4266.6,4266.5,3.16427055]
[1754784877542,1e-08,4266.6,4266.5,6.16427055]
[1754784880222,1e-08,4266.6,4266.5,9.76727055]
[1754784880944,1e-08,4266.6,4266.5,2.46064155]
[1754784881442,1e-08,4266.6,4266.5,2.57744155]
[1754784882042,1e-08,4266.6,4266.5,9.18144155]
[1754784888225,1e-08,4266.6,4266.5,9.73144155]
[1754784888430,0.04,4267.9,4267.8,2.3431276]
[1754784888629,0.04,4267.9,4267.8,5.9441276]
[1754784888826,0.04,4267.9,4267.8,6.0609276]
[1754784890761,0.04,4267.9,4267.8,6.2784116]
[1754784895837,0.04,4267.9,4267.8,6.2744116]
[1754784898663,0.04,4267.9,4267.8,6.27407887]
[1754784900445,0.04,4267.9,4267.8,2.67707887]
[1754784902877,0.04,4267.9,4267.8,6.27407887]
[1754784903553,0.002,4268.4,4267.9,5.3430727]
[1754784903734,0.002,4268.4,4268.3,2.34285312]
[1754784903930,0.002,4268.4,4268.3,2.67680439]
[1754784910173,0.002,4268.4,4268.3,2.6771479]
[1754784910868,0.002,4268.4,4268.3,2.6771631]
[1754784911939,0.002,4268.4,4268.3,0.33430998]
[1754784912972,0.002,4268.4,4268.3,2.6771631]
[1754784913941,0.002,4268.4,4268.3,0.33430998]
[1754784915075,0.002,4268.4,4268.3,2.6771631]
[1754784915450,0.002,4268.4,4268.3,0.33430998]
[1754784917185,0.002,4268.4,4268.3,0.21750998]
[1754784919879,0.002,4268.4,4268.3,2.5603631]
[1754784920593,0.002,4268.4,4268.3,0.21750998]
[1754784920793,0.002,4268.4,4268.3,2.5603631]
[1754784920993,0.002,4268.4,4268.3,0.21750998]
[1754784921394,0.002,4268.4,4268.3,2.5603631]
[1754784923295,0.002,4268.4,4268.3,2.56072338]
[1754784926002,0.002,4268.4,4268.3,2.56069252]
[1754784928121,0.002,4268.4,4268.3,0.2178394]
[1754784928594,0.002,4268.4,4268.3,2.56069252]
[1754784929700,0.002,4268.4,4268.3,0.2178394]
[1754784930619,0.002,4268.4,4268.3,2.56069252]
[1754784934525,0.002,4268.4,4268.3,2.67749252]
[1754784936897,0.002,4268.4,4268.3,0.3346394]
[1754784937102,0.002,4268.4,4268.3,0.2178394]
[1754784937530,0.002,4268.4,4268.3,0.21786543]
[1754784940640,0.002,4268.4,4268.3,2.67751855]
[1754784945733,0.002,4268.4,4268.3,6.27251855]
[1754784945935,0.002,4268.8,4268.7,2.34263358]
[1754784946119,0.002,4268.8,4268.7,2.67729901]
[1754784946933,0.002,4268.8,4268.7,0.33466543]
[1754784947133,0.1188,4268.8,4268.7,0.21786543]
[1754784948920,0.1188,4268.8,4268.3,2.34283878]
[1754784949122,0.1188,4268.8,4268.2,0.2336]
[1754784949123,0.1188,4268.8,4268.4,0.21749522]
[1754784949354,0.1188,4268.8,4268.5,0.21749522]
[1754784949654,0.1188,4268.8,4268.6,0.21749522]
[1754784949952,0.1188,4268.8,4268.7,0.21749522]
[1754784950526,0.1188,4268.8,4268.7,2.5601288]
[1754784951028,0.002,4268.8,4268.7,2.5601288]
[1754784951874,0.002,4268.8,4268.7,2.56005181]
[1754784952021,3.595,4270.3,4269.8,2.34203007]
[1754784952227,3.595,4270.3,4269.8,2.5594483]
[1754784952453,3.595,4270.3,4269.8,2.50083317]
[1754784952641,0.04,4270.9,4269.8,2.50083317]
[1754784952960,0.1168,4270.8,4269.8,2.50083317]
[1754784953348,0.04,4270.9,4269.8,2.50083317]
[1754784954365,0.002,4270.1,4269.8,6.09583317]
[1754784954560,0.002,4270.1,4269.8,6.21263317]
[1754784955544,0.042,4269.9,4269.8,6.21263317]
[1754784956166,1e-08,4270.1,4270.0,2.34192037]
[1754784956346,1e-08,4270.1,4270.0,5.5593386]
[1754784957173,0.04,4270.9,4270.8,2.34148168]
[1754784957346,0.04,4270.9,4270.8,6.15289991]
[1754784957685,0.04,4270.9,4270.8,6.26848377]
[1754784958472,0.04,4270.9,4270.8,2.67448377]
[1754784958674,0.04,4270.9,4270.8,6.26848377]
[1754784958878,0.04,4270.9,4270.8,2.67448377]
[1754784959759,0.04,4270.9,4270.8,0.21620209]
[1754784967968,0.04,4270.9,4270.4,2.34168982]
[1754784968169,0.04,4270.9,4270.5,2.55752633]
[1754784968384,0.04,4270.9,4270.6,0.21589804]
[1754784968604,0.04,4270.9,4270.7,0.21589804]
[1754784968899,0.04,4270.9,4270.8,0.21589804]
[1754784969685,0.1568,4270.9,4270.8,0.21589804]
[1754784970609,0.1568,4270.9,4270.8,0.21604877]
[1754784971015,0.04,4270.9,4270.8,0.21604918]
[1754784971509,0.04,4270.9,4270.8,2.55753086]
[1754784972003,0.04,4270.9,4270.8,0.21604918]
[1754784973979,0.04,4270.9,4270.8,0.21617336]
[1754784974381,0.1568,4270.9,4270.8,0.21617336]
[1754784975114,3.04822686,4270.9,4270.8,0.21617336]
[1754784975511,6.04822686,4270.9,4270.8,0.21617336]
[1754784980136,9.64122686,4270.9,4270.8,0.21617336]
[1754784980429,9.85997891,4270.9,4270.8,0.21617336]
[1754784981032,16.8899789,4270.9,4270.8,0.21617336]
[1754784982642,16.89005799,4270.9,4270.8,0.21617336]
[1754784983139,3.55,4270.8,4269.6,0.001]
[1754784983437,5.89208492,4269.7,4269.6,0.001]
[1754784983635,9.70391606,4269.7,4269.6,0.001]
[1754784984028,3.593,4269.7,4269.6,0.001]
[1754784985018,3.0,4270.6,4269.6,0.001]
[1754784985226,0.55,4270.0,4269.6,0.001]
[1754784985544,3.593,4269.9,4269.6,0.001]
[1754784986128,0.55,4269.8,4269.6,0.001]
[1754784986334,2.91554218,4269.7,4269.6,0.001]
[1754784987655,2.89208492,4269.7,4269.6,0.001]
[1754784992069,3.07150144,4269.7,4269.6,0.001]
[1754784993877,6.78130144,4269.7,4269.6,0.001]
[1754784995370,6.78130144,4269.7,4269.6,0.21811233]
[1754784997176,6.78130144,4269.7,4269.6,0.2181167]
[1754785001242,4.43921652,4269.7,4269.6,0.2181167]
[1754785001484,3.88921652,4269.7,4269.6,0.2181167]
[1754785001771,3.7098,4269.7,4269.6,0.2181167]
[1754785001939,7.02999999,4270.5,4269.6,0.2181167]
[1754785002145,0.1168,4270.0,4269.9,2.34197522]
[1754785002446,3.593,4270.2,4269.9,0.3339167]
[1754785002671,3.593,4270.2,4270.0,2.55903707]
[1754785002888,3.593,4270.2,4270.1,2.55898223]
[1754785005366,0.1168,4270.5,4270.1,0.2171167]
[1754785005574,0.1168,4270.5,4270.4,2.34170101]
[1754785005773,3.7098,4270.5,4270.4,2.55881771]
[1754785006092,3.593,4270.5,4270.4,2.55881771]
[1754785007876,3.593,4270.5,4270.4,0.2171167]
[1754785008076,3.7098,4270.5,4270.4,0.2171167]
[1754785008696,3.7098,4270.5,4270.4,2.55881771]
[1754785008999,3.7098,4270.5,4270.4,0.2170391]
[1754785009566,4.2598,4270.5,4270.4,0.2170391]
[1754785009769,3.7098,4270.5,4270.4,0.2170391]
[1754785010466,3.7098,4270.5,4270.4,2.55874011]
[1754785010671,0.1168,4270.5,4270.4,2.55874011]
[1754785010872,3.592,4270.5,4270.4,2.55874011]
[1754785011188,0.04,4270.9,4270.8,2.34148168]
[1754785011379,0.04,4270.9,4270.8,2.67532078]
[1754785011805,0.04,4270.9,4270.8,2.67506575]
[1754785012302,0.04,4270.9,4270.8,0.21678407]
[1754785013069,0.7068,4270.9,4270.8,0.21678407]
[1754785013492,0.1568,4270.9,4270.8,0.21678407]
[1754785014817,0.1568,4270.9,4270.8,0.21682557]
[1754785016312,3.633,4270.9,4270.8,0.21682557]
[1754785018833,6.52442686,4270.9,4270.8,0.21682557]
[1754785022097,6.64122686,4270.9,4270.8,0.21682557]
[1754785024745,0.04,4270.9,4270.8,0.21682557]
[1754785024903,3.632,4270.9,4270.8,0.21682557]
[1754785025100,3.632,4270.9,4270.8,2.55830725]
[1754785025317,0.04,4270.9,4270.8,2.55830725]
[1754785025518,0.04,4270.9,4270.8,2.55868284]
[1754785030833,0.04,4270.9,4270.8,2.5588003]
[1754785034029,0.04,4270.9,4270.8,2.55884573]
[1754785034754,0.04,4270.9,4270.8,2.67564573]
[1754785037772,0.04,4270.9,4270.8,2.67558195]
[1754785040163,0.04,4270.9,4270.8,2.55878195]
[1754785040349,0.04,4270.9,4270.8,2.80558195]
[1754785043064,0.04,4270.9,4270.8,2.80658195]
[1754785043271,0.042,4270.9,4270.8,2.80658195]
[1754785044137,0.042,4270.9,4270.8,0.34830027]
[1754785044544,0.1588,4270.9,4270.8,0.34830027]
[1754785046553,0.1588,4270.9,4270.8,0.34853273]
[1754785048173,2.52368412,4270.9,4270.8,0.34853273]
[1754785048473,0.1588,4270.9,4270.8,0.34853273]
[1754785048944,2.50022686,4270.9,4270.8,0.34853273]
[1754785050771,3.05022686,4270.9,4270.8,0.34853273]
[1754785051863,3.05022686,4270.9,4270.8,0.131]
[1754785052071,3.05022686,4270.9,4270.8,0.34871394]
[1754785054875,3.05022686,4270.9,4270.8,0.34874333]
[1754785060476,3.05022686,4270.9,4270.8,0.34864815]
[1754785064186,6.64122686,4270.9,4270.8,0.34864815]
[1754785065184,3.05022686,4270.9,4270.8,0.34864815]
[1754785065356,6.64122686,4270.9,4270.8,0.34864815]
[1754785067563,9.74329031,4270.9,4270.8,0.34864815]
[1754785067883,9.74329969,4270.9,4270.8,0.34864815]
[1754785068383,6.15229969,4270.9,4270.8,0.34864815]
[1754785068587,9.74331509,4270.9,4270.8,0.34864815]
[1754785068990,9.74331509,4270.9,4270.8,0.34898758]
[1754785069569,9.74334965,4270.9,4270.8,0.34898758]
[1754785072191,6.15234965,4270.9,4270.8,0.34898758]
[1754785072378,9.74334965,4270.9,4270.8,0.34898758]
[1754785072692,9.74351742,4270.9,4270.8,0.34898758]
[1754785073399,16.77351741,4270.9,4270.8,0.34898758]
[1754785073974,19.67351741,4270.9,4270.8,0.34898758]
[1754785074364,16.77351741,4270.9,4270.8,0.34898758]
[1754785074565,16.55442685,4270.9,4270.8,0.34898758]
[1754785074765,16.7736788,4270.9,4270.8,0.34898758]
[1754785076498,16.7736788,4270.9,4270.3,0.001]
[1754785076499,5.89170101,4270.4,4270.3,1e-08]
[1754785076670,10.23889524,4270.4,4270.3,1e-08]
[1754785076869,10.37045186,4270.4,4270.3,1e-08]
[1754785077066,6.64789524,4270.4,4270.3,1e-08]
[1754785077499,10.355618,4270.4,4270.3,1e-08]
[1754785078293,4.67794228,4270.4,4270.3,1e-08]
[1754785078686,7.01964329,4270.4,4270.3,1e-08]
[1754785079072,4.67794228,4270.4,4270.3,1e-08]
[1754785079902,7.01964329,4270.4,4270.3,1e-08]
[1754785080397,4.67794228,4270.4,4270.3,1e-08]
[1754785080596,3.0,4270.8,4270.3,1e-08]
[1754785080796,3.591,4270.7,4270.3,1e-08]
[1754785081368,3.591,4270.6,4270.3,2.34170122]
[1754785081574,3.591,4270.5,4270.3,2.34170122]
[1754785082604,3.591,4270.5,4270.4,2.34170101]
[1754785086109,0.042,4270.9,4270.3,1e-08]
[1754785086416,3.591,4270.8,4270.7,2.34153651]
[1754785086621,0.042,4270.9,4270.8,2.34148168]
[1754785088188,0.042,4270.9,4270.8,2.45828168]
[1754785088386,0.042,4270.9,4270.8,2.67636794]
[1754785088800,0.042,4270.9,4270.8,5.69978275]
[1754785088971,0.042,4270.9,4270.8,5.67636794]
[1754785089490,0.042,4270.9,4270.8,0.33488626]
[1754785089804,0.042,4270.9,4270.8,2.67636794]
[1754785090208,0.042,4270.9,4270.8,0.33488626]
[1754785090619,0.042,4270.9,4270.8,0.33487933]
[1754785090983,0.042,4270.9,4270.8,0.33484857]
[1754785091622,0.042,4270.9,4270.8,2.67633025]
[1754785095718,0.042,4270.9,4270.8,5.69974506]
[1754785095922,0.042,4270.9,4270.8,5.67633025]
[1754785098024,1e-08,4270.9,4270.8,5.67633025]
[1754785098218,1e-08,4270.9,4270.8,5.55953025]
[1754785098399,1e-08,4271.4,4270.9,5.34142686]
[1754785098721,1e-08,4271.4,4271.3,2.34120759]
[1754785098918,1e-08,4271.4,4271.3,5.55925616]
[1754785099119,0.04,4271.9,4271.4,2.34115278]
[1754785099418,0.04,4271.9,4271.8,2.34093356]
[1754785099419,1e-08,4271.9,4271.8,2.34093356]
[1754785099624,1e-08,4271.9,4271.8,5.55898213]
[1754785101916,1e-08,4271.9,4271.8,5.34093356]
[1754785102115,1e-08,4271.9,4271.8,5.55787753]
[1754785102500,1e-08,4271.9,4271.8,9.14687753]
[1754785104910,1e-08,4271.9,4271.8,9.14667817]
[1754785108042,1e-08,4271.9,4271.8,9.26347817]
[1754785109235,1e-08,4271.9,4271.8,5.67447817]
[1754785109429,1e-08,4271.9,4271.8,9.26347817]
[1754785110539,1e-08,4271.9,4271.8,9.26350631]
[1754785117640,1e-08,4271.9,4271.8,9.26250631]
[1754785119029,1e-08,4271.9,4271.8,9.26261352]
[1754785121076,1e-08,4271.9,4271.8,5.67461352]
[1754785121231,1e-08,4271.9,4271.8,9.26261352]
[1754785122171,1e-08,4271.9,4271.8,6.14581352]
[1754785122460,1e-08,4271.9,4271.8,9.14581352]
[1754785123043,1e-08,4271.9,4271.8,6.14581352]
[1754785123449,1e-08,4271.9,4271.8,5.55781352]
[1754785124258,1e-08,4271.9,4271.8,5.55833913]
[1754785125376,1e-08,4271.9,4271.8,0.21740557]
[1754785125667,1e-08,4271.9,4271.8,2.55833913]
[1754785126331,1e-08,4271.9,4271.8,0.21740557]
[1754785126529,1e-08,4271.9,4271.8,2.55833913]
[1754785127468,1e-08,4271.9,4271.8,2.55869058]
[1754785128138,1e-08,4271.9,4271.8,0.21775702]